bitfinex-derivatives/quotes_BTCF0:USTF0_20251110
["timestamp","ask_amount","ask_price","bid_price","bid_amount"]
[1762783015540,0.00533912,106570.0,106560.0,0.10496695]
[1762783016441,0.09697292,106570.0,106560.0,0.10496695]
[1762783017739,0.09333143,106570.0,106560.0,0.10496695]
[1762783019439,0.09333143,106570.0,106560.0,0.18920628]
[1762783019936,0.09333143,106570.0,106560.0,0.10496695]
[1762783020141,0.12483143,106570.0,106560.0,0.10496695]
[1762783020533,0.03319763,106570.0,106560.0,0.10496695]
[1762783020739,0.12483143,106570.0,106560.0,0.17234026]
[1762783021843,0.12483143,106570.0,106560.0,0.10496695]
[1762783022044,0.12483143,106570.0,106560.0,0.17234454]
[1762783023145,0.12483143,106570.0,106560.0,0.10496695]
[1762783023443,0.12483143,106570.0,106560.0,0.18920628]
[1762783023846,0.11433143,106570.0,106560.0,0.24690628]
[1762783024040,0.11433143,106570.0,106560.0,0.16266695]
[1762783024440,0.11433143,106570.0,106560.0,0.24690628]
[1762783024945,0.11433143,106570.0,106560.0,0.24340628]
[1762783025648,0.10383143,106570.0,106560.0,0.24340628]
[1762783025849,0.11433143,106570.0,106560.0,0.24340628]
[1762783028950,0.02269763,106570.0,106560.0,0.24340628]
[1762783029143,0.11433143,106570.0,106560.0,0.24340628]
[1762783030457,0.02269763,106570.0,106560.0,0.24340628]
[1762783030648,0.01219763,106570.0,106560.0,0.33504008]
[1762783031151,0.10383143,106570.0,106560.0,0.24340628]
[1762783031758,0.1001906,106570.0,106560.0,0.24340628]
[1762783031952,0.1087406,106570.0,106560.0,0.24340628]
[1762783034549,0.1087406,106570.0,106560.0,0.15916695]
[1762783034957,0.1087406,106570.0,106560.0,0.24343496]
[1762783035451,0.0085568,106570.0,106560.0,0.15916695]
[1762783035652,0.1001906,106570.0,106560.0,0.15916695]
[1762783037359,0.1087406,106570.0,106560.0,0.15916695]
[1762783038860,0.1087406,106570.0,106560.0,0.15566695]
[1762783039760,0.1087406,106570.0,106560.0,0.2399339]
[1762783041260,0.1087406,106570.0,106560.0,0.15566695]
[1762783042958,0.1001906,106570.0,106560.0,0.15566695]
[1762783043156,0.0085568,106570.0,106560.0,0.15566695]
[1762783044055,13.27642142,106580.0,106570.0,0.0573]
[1762783044261,13.27642142,106580.0,106570.0,0.05949803]
[1762783044662,13.27642142,106580.0,106570.0,0.15335633]
[1762783046062,13.27842142,106580.0,106570.0,0.15335633]
[1762783046455,13.28042142,106580.0,106570.0,0.15335633]
[1762783046960,13.27678125,106580.0,106570.0,0.15335633]
[1762783047557,13.27678125,106580.0,106570.0,0.05949803]
[1762783047956,13.27678125,106580.0,106570.0,0.13509904]
[1762783048257,13.27678125,106580.0,106570.0,0.05949803]
[1762783048957,13.36834317,106580.0,106570.0,0.05949803]
[1762783049259,13.27674531,106580.0,106570.0,0.15335633]
[1762783049464,13.36834317,106580.0,106570.0,0.15335633]
[1762783050062,13.36834317,106580.0,106570.0,0.23762328]
[1762783050458,13.18514745,106580.0,106570.0,0.23762328]
[1762783050658,13.36834317,106580.0,106570.0,0.23762328]
[1762783052064,13.27674531,106580.0,106570.0,0.23762328]
[1762783052269,13.27674531,106580.0,106570.0,0.40614352]
[1762783052561,13.18514745,106580.0,106570.0,0.40614352]
[1762783052761,13.18514745,106580.0,106570.0,0.32187657]
[1762783052961,13.18514745,106580.0,106570.0,0.40614352]
[1762783053267,13.27674531,106580.0,106570.0,0.40614352]
[1762783053766,13.18514745,106580.0,106570.0,0.40614352]
[1762783054268,13.18514745,106580.0,106570.0,0.32187657]
[1762783054766,13.18514745,106580.0,106570.0,0.40601402]
[1762783055061,13.27674531,106580.0,106570.0,0.40251402]
[1762783055765,13.18514745,106580.0,106570.0,0.40251402]
[1762783056368,13.27674531,106580.0,106570.0,0.40251402]
[1762783061968,13.18514745,106580.0,106570.0,0.40251402]
[1762783062172,13.18150794,106580.0,106570.0,0.40251402]
[1762783063567,13.2731058,106580.0,106570.0,0.40251402]
[1762783064172,13.2731058,106580.0,106570.0,0.31837657]
[1762783064475,13.2731058,106580.0,106570.0,0.40243944]
[1762783068070,13.18150794,106580.0,106570.0,0.40243944]
[1762783068276,13.2731058,106580.0,106570.0,0.40243944]
[1762783069170,13.2731058,106580.0,106570.0,0.39893944]
[1762783069878,13.18150794,106580.0,106570.0,0.39893944]
[1762783070580,13.18150794,106580.0,106570.0,0.4905373]
[1762783070777,13.18150794,106580.0,106570.0,0.39893944]
[1762783070978,13.18150794,106580.0,106570.0,0.4905373]
[1762783071276,13.18150794,106580.0,106570.0,1.0905373]
[1762783071480,13.05477609,106580.0,106570.0,1.33486506]
[1762783071679,13.05477609,106580.0,106570.0,1.45252964]
[1762783071978,13.05277609,106580.0,106570.0,1.45252964]
[1762783072182,13.05077609,106580.0,106570.0,1.45252964]
[1762783072680,13.05077609,106580.0,106570.0,1.45352964]
[1762783073581,13.05077609,106580.0,106570.0,1.21896964]
[1762783073774,13.05077609,106580.0,106570.0,1.21996964]
[1762783074174,13.05077609,106580.0,106570.0,1.45452964]
[1762783074376,12.49005809,106580.0,106570.0,1.45452964]
[1762783074572,11.22049166,106580.0,106570.0,1.65744503]
[1762783074776,7.9292457,106580.0,106570.0,1.69863062]
[1762783074973,6.53732092,106580.0,106570.0,1.69863062]
[1762783075175,6.53732092,106580.0,106570.0,0.90303277]
[1762783075478,6.53732092,106580.0,106570.0,2.15622066]
[1762783075774,6.53732092,106580.0,106570.0,1.92166066]
[1762783075982,6.53368208,106580.0,106570.0,2.02867277]
[1762783076175,6.53368208,106580.0,106570.0,1.79311277]
[1762783076374,6.53368208,106580.0,106570.0,2.02967277]
[1762783076684,6.53368208,106580.0,106570.0,1.50403277]
[1762783076982,6.53368208,106580.0,106570.0,2.03067277]
[1762783077183,6.53368208,106580.0,106570.0,1.96279444]
[1762783077378,6.53368208,106580.0,106570.0,2.19735444]
[1762783077576,6.53368208,106580.0,106570.0,1.96279444]
[1762783077776,6.53368208,106580.0,106570.0,2.19735444]
[1762783078082,6.53368208,106580.0,106570.0,2.31985444]
[1762783078581,6.53368208,106580.0,106570.0,2.31981444]
[1762783078783,6.53368208,106580.0,106570.0,2.15313277]
[1762783079686,6.53368208,106580.0,106570.0,1.91857277]
[1762783079877,6.53368208,106580.0,106570.0,2.15313277]
[1762783080183,6.53368208,106580.0,106570.0,1.77117277]
[1762783080382,6.53368208,106580.0,106570.0,2.00573277]
[1762783080580,6.53368208,106580.0,106570.0,1.77117277]
[1762783080781,6.53368208,106580.0,106570.0,1.48013277]
[1762783080979,6.53368208,106580.0,106570.0,2.00569277]
[1762783081486,6.40697084,106580.0,106570.0,2.00569277]
[1762783081682,6.45270084,106580.0,106570.0,1.1597072]
[1762783081876,6.45270084,106580.0,106570.0,1.41798673]
[1762783082188,6.45270084,106580.0,106570.0,1.18342673]
[1762783082383,6.45270084,106580.0,106570.0,1.41798673]
[1762783082687,6.45270084,106580.0,106570.0,0.65786673]
[1762783082878,6.45270084,106580.0,106570.0,0.89242673]
[1762783083074,6.45270084,106580.0,106570.0,0.56626887]
[1762783083479,6.72974606,106580.0,106570.0,0.25454927]
[1762783083686,6.5442987,106580.0,106570.0,0.19165419]
[1762783083885,6.45270084,106580.0,106570.0,0.34582419]
[1762783084892,6.45270084,106580.0,106570.0,0.42969179]
[1762783085188,6.45270084,106580.0,106570.0,0.34582419]
[1762783085787,6.45270084,106580.0,106570.0,0.42969179]
[1762783086289,6.54655034,106580.0,106570.0,0.50487242]
[1762783087493,6.6381482,106580.0,106570.0,0.35070242]
[1762783087788,6.54655034,106580.0,106570.0,0.35070242]
[1762783087995,6.6381482,106580.0,106570.0,0.35070242]
[1762783088286,6.6381482,106580.0,106570.0,0.26683482]
[1762783088492,6.6381482,106580.0,106570.0,0.08137866]
[1762783088695,6.6381482,106580.0,106570.0,0.26683482]
[1762783089987,6.5442987,106580.0,106570.0,0.26683482]
[1762783090187,6.6381482,106580.0,106570.0,0.26683482]
[1762783090490,6.63451002,106580.0,106570.0,0.26683482]
[1762783091285,6.63451002,106580.0,106570.0,0.35070242]
[1762783094594,6.63451002,106580.0,106570.0,0.26683482]
[1762783095784,6.63451002,106580.0,106570.0,0.18166349]
[1762783096186,6.63451002,106580.0,106570.0,0.27552179]
[1762783096588,6.63451002,106580.0,106570.0,0.18392393]
[1762783096791,6.63451002,106580.0,106570.0,0.27202179]
[1762783098998,6.54066052,106580.0,106570.0,0.27202179]
[1762783099300,6.54066052,106580.0,106570.0,0.41803179]
[1762783099991,6.44906266,106580.0,106570.0,0.41803179]
[1762783101297,6.44906266,106580.0,106570.0,0.33416419]
[1762783102088,6.44906266,106580.0,106570.0,0.41803179]
[1762783103102,6.44906266,106580.0,106570.0,0.35998097]
[1762783103393,6.44906266,106580.0,106570.0,0.45157883]
[1762783103594,6.44906266,106580.0,106570.0,0.52640664]
[1762783103795,6.44542514,106580.0,106570.0,0.52640664]
[1762783104700,6.44542514,106580.0,106570.0,0.408992]
[1762783105604,6.44542514,106580.0,106570.0,0.52640664]
[1762783107196,6.44542514,106580.0,106570.0,0.94639513]
[1762783107500,6.44542514,106580.0,106570.0,0.99041513]
[1762783107702,6.44542514,106580.0,106570.0,0.75585513]
[1762783107901,6.44542514,106580.0,106570.0,0.59442049]
[1762783109099,6.44542514,106580.0,106570.0,0.87300049]
[1762783109995,6.44542514,106580.0,106570.0,1.03968216]
[1762783110191,6.39969514,106580.0,106570.0,1.18708216]
[1762783110396,6.39969514,106580.0,106570.0,1.78708216]
[1762783110901,6.39969514,106580.0,106570.0,1.69244125]
[1762783111293,6.40189317,106580.0,106570.0,1.69244125]
[1762783112702,6.40189317,106580.0,106570.0,1.45788125]
[1762783112902,6.40189317,106580.0,106570.0,1.69244125]
[1762783113597,6.40189317,106580.0,106570.0,1.45788125]
[1762783114000,6.40189317,106580.0,106570.0,1.69244125]
[1762783114603,6.40189317,106580.0,106570.0,1.45788125]
[1762783114998,6.40189317,106580.0,106570.0,1.69244125]
[1762783115703,6.40189317,106580.0,106570.0,1.45788125]
[1762783115898,5.91960354,106580.0,106570.0,1.09244125]
[1762783116104,5.91960354,106580.0,106570.0,0.85788125]
[1762783116399,4.72575594,106580.0,106570.0,1.09244125]
[1762783117003,4.72795397,106580.0,106570.0,1.09244125]
[1762783117211,4.72795397,106580.0,106570.0,0.69119958]
[1762783117395,4.72795397,106580.0,106570.0,0.92575958]
[1762783118103,4.72431711,106580.0,106570.0,0.92575958]
[1762783118301,4.72431711,106580.0,106570.0,0.69119958]
[1762783118498,4.72431711,106580.0,106570.0,0.92575958]
[1762783119805,4.72431711,106580.0,106570.0,0.69119958]
[1762783120005,4.72431711,106580.0,106570.0,0.92575958]
[1762783120304,4.76962711,106580.0,106570.0,0.85167452]
[1762783121406,4.76962711,106580.0,106570.0,0.61711452]
[1762783122698,4.76962711,106580.0,106570.0,0.52559892]
[1762783122905,4.76962711,106580.0,106570.0,0.61711452]
[1762783124302,4.76962711,106580.0,106570.0,0.37727389]
[1762783124608,4.76962711,106580.0,106570.0,0.24087725]
[1762783124809,4.76962711,106580.0,106570.0,0.23737725]
[1762783125200,4.86347661,106580.0,106570.0,0.23737725]
[1762783125505,4.76962711,106580.0,106570.0,0.23737725]
[1762783125898,4.86347661,106580.0,106570.0,0.14586165]
[1762783126106,4.86347661,106580.0,106570.0,0.23737725]
[1762783126503,4.76962711,106580.0,106570.0,0.23737725]
[1762783126806,4.86347661,106580.0,106570.0,0.14586165]
[1762783127005,4.86347661,106580.0,106570.0,0.05200335]
[1762783127212,4.86347661,106580.0,106570.0,0.32128949]
[1762783127405,4.76962711,106580.0,106570.0,0.32128949]
[1762783127708,4.76962711,106580.0,106570.0,0.22977389]
[1762783128012,4.76962711,106580.0,106570.0,0.32128949]
[1762783128213,4.86347661,106580.0,106570.0,0.32128949]
[1762783129508,4.76962711,106580.0,106570.0,0.32128949]
[1762783131009,4.86347661,106580.0,106570.0,0.32128949]
[1762783132514,4.76962711,106580.0,106570.0,0.32128949]
[1762783132717,4.76962711,106580.0,106570.0,0.22977389]
[1762783132908,4.76962711,106580.0,106570.0,0.32128949]
[1762783133511,4.76962711,106580.0,106570.0,0.39121949]
[1762783133909,4.76962711,106580.0,106570.0,0.47190949]
[1762783136415,4.76962711,106580.0,106570.0,0.56574012]
[1762783136810,4.76962711,106580.0,106570.0,0.48182788]
[1762783137410,4.76962711,106580.0,106570.0,0.56572996]
[1762783137709,4.76962711,106580.0,106570.0,0.47421436]
[1762783137909,4.76962711,106580.0,106570.0,0.56572996]
[1762783138518,4.76962711,106580.0,106570.0,0.56222996]
[1762783139216,4.76962711,106580.0,106570.0,0.61280996]
[1762783139513,4.76962711,106580.0,106570.0,0.76020996]
[1762783140726,4.76962711,106580.0,106570.0,0.61280996]
[1762783141110,4.72431711,106580.0,106570.0,0.52890788]
[1762783141417,4.72431711,106580.0,106570.0,0.88080282]
[1762783141718,4.72431711,106580.0,106570.0,0.64624282]
[1762783142019,4.77344711,106580.0,106570.0,0.64624282]
[1762783142221,4.77344711,106580.0,106570.0,0.52890788]
[1762783142716,4.77344711,106580.0,106570.0,0.43739228]
[1762783142912,4.77344711,106580.0,106570.0,0.52890788]
[1762783143114,4.77344711,106580.0,106570.0,0.69558955]
[1762783143915,4.77344711,106580.0,106570.0,0.52890788]
[1762783144621,4.77344711,106580.0,106570.0,0.69558955]
[1762783145416,4.77344711,106580.0,106570.0,0.52890788]
[1762783150828,4.77344711,106580.0,106570.0,0.39763788]
[1762783151018,4.77344711,106580.0,106570.0,0.48280788]
[1762783152521,4.77344711,106580.0,106570.0,0.53338788]
[1762783153424,4.77344711,106580.0,106570.0,0.70006955]
[1762783154235,4.77344711,106580.0,106570.0,0.53338788]
[1762783154734,4.77344711,106580.0,106570.0,0.65084568]
[1762783154930,4.77344711,106580.0,106570.0,0.64734568]
[1762783156031,4.72431711,106580.0,106570.0,0.64734568]
[1762783156219,4.72431711,106580.0,106570.0,0.52988788]
[1762783160038,4.72431711,106580.0,106570.0,0.69656955]
[1762783161034,4.72431711,106580.0,106570.0,0.81402143]
[1762783161231,4.48931711,106580.0,106570.0,0.81402143]
[1762783161439,0.12121,106620.0,106610.0,0.08583]
[1762783161633,0.18562803,106610.0,106600.0,0.33574103]
[1762783161833,0.18562803,106610.0,106600.0,0.65976024]
[1762783162033,0.18912803,106610.0,106600.0,0.78713453]
[1762783162337,0.18793803,106610.0,106600.0,0.83794453]
[1762783162537,0.18793803,106610.0,106600.0,0.78713453]
[1762783162740,0.18793803,106610.0,106600.0,0.87865013]
[1762783163636,0.18793803,106610.0,106600.0,0.87965013]
[1762783164536,0.18793803,106610.0,106600.0,0.71639453]
[1762783164743,0.18793803,106610.0,106600.0,0.88113013]
[1762783165745,0.18793803,106610.0,106600.0,0.76372734]
[1762783166938,0.18793803,106610.0,106600.0,0.81453734]
[1762783167443,0.18443803,106610.0,106600.0,0.81453734]
[1762783167846,0.15241,106610.0,106600.0,0.81453734]
[1762783168041,0.15241,106610.0,106600.0,0.93169763]
[1762783168634,0.15460803,106610.0,106600.0,0.93169763]
[1762783168840,0.18443803,106610.0,106600.0,0.93169763]
[1762783169936,0.18443803,106610.0,106600.0,0.92819763]
[1762783170241,0.18443803,106610.0,106600.0,0.5259495]
[1762783170439,0.18443803,106610.0,106600.0,0.67780344]
[1762783170639,0.27826113,106610.0,106600.0,0.33227154]
[1762783170942,0.96977673,106610.0,106600.0,0.00253921]
[1762783171148,0.87826113,106610.0,106600.0,0.00253921]
[1762783171440,0.87826113,106610.0,106590.0,0.26915722]
[1762783171642,0.2029,106600.0,106590.0,0.26915722]
[1762783171842,0.20509803,106600.0,106590.0,0.26915722]
[1762783172245,0.20509803,106600.0,106590.0,0.18549049]
[1762783172437,0.20509803,106600.0,106590.0,0.30265078]
[1762783172940,0.20509803,106600.0,106590.0,0.30365518]
[1762783173741,0.20509803,106600.0,106590.0,0.30465518]
[1762783175248,0.20509803,106600.0,106590.0,0.46270518]
[1762783175638,0.20509803,106600.0,106590.0,0.42924602]
[1762783175839,0.20509803,106600.0,106590.0,0.35702602]
[1762783176553,0.29892993,106600.0,106590.0,0.17736222]
[1762783176849,0.20509803,106600.0,106590.0,0.27120292]
[1762783177257,0.20509803,106600.0,106590.0,0.35703292]
[1762783178451,0.20509803,106600.0,106590.0,0.27333179]
[1762783179146,0.62304993,106600.0,106590.0,0.27333179]
[1762783179343,0.62304993,106600.0,106590.0,0.39049208]
[1762783179853,0.62304993,106600.0,106590.0,0.29665138]
[1762783180150,0.62304993,106600.0,106590.0,0.39049208]
[1762783180545,0.29892993,106600.0,106590.0,0.39049208]
[1762783180753,0.62300993,106600.0,106590.0,0.39049208]
[1762783181650,0.71452993,106600.0,106590.0,0.11930138]
[1762783181845,0.71452993,106600.0,106590.0,0.21082138]
[1762783182153,0.71452993,106600.0,106590.0,0.09366109]
[1762783182949,0.71452993,106600.0,106590.0,0.17740061]
[1762783184451,0.71452993,106600.0,106590.0,0.09366109]
[1762783184758,0.62300993,106600.0,106590.0,0.00214109]
[1762783184946,0.71452993,106600.0,106590.0,0.09366109]
[1762783185147,0.2029,106590.0,106580.0,0.35493222]
[1762783185347,0.29893873,106590.0,106580.0,0.51867222]
[1762783186051,0.29893873,106590.0,106580.0,0.42715222]
[1762783186444,0.29893873,106590.0,106580.0,0.52167222]
[1762783187560,0.29893873,106590.0,106580.0,0.52267222]
[1762783188049,0.29893873,106590.0,106580.0,0.4389327]
[1762783190058,0.29893873,106590.0,106580.0,0.4389393]
[1762783190260,0.29893873,106590.0,106580.0,0.46225029]
[1762783190654,0.39045873,106590.0,106580.0,0.20488504]
[1762783190960,0.29893873,106590.0,106580.0,0.17924475]
[1762783191461,0.29893873,106590.0,106580.0,0.25156475]
[1762783191763,0.39145873,106590.0,106580.0,0.36524475]
[1762783192258,0.39045873,106590.0,106580.0,0.36224475]
[1762783192555,0.39145873,106590.0,106580.0,0.17524475]
[1762783193862,0.39145873,106590.0,106580.0,0.1853693]
[1762783194359,0.39145873,106590.0,106580.0,0.09152]
[1762783194661,0.39145873,106590.0,106570.0,0.50074178]
[1762783194662,0.3422693,106580.0,106570.0,0.50074178]
[1762783194864,0.34446733,106580.0,106570.0,0.50074178]
[1762783195061,0.34213803,106580.0,106570.0,0.50074178]
[1762783195248,0.25061803,106580.0,106570.0,0.50074178]
[1762783195448,0.34446733,106580.0,106570.0,0.32316523]
[1762783195848,0.34446733,106580.0,106570.0,0.32416523]
[1762783196051,0.34446733,106580.0,106570.0,0.41802333]
[1762783196265,0.34446733,106580.0,106570.0,0.32416523]
[1762783197561,0.43598733,106580.0,106570.0,0.32416523]
[1762783197861,0.34446733,106580.0,106570.0,0.32416523]
[1762783198162,0.43598733,106580.0,106570.0,0.25428552]
[1762783198351,0.43598733,106580.0,106570.0,0.33805871]
[1762783198551,0.43598733,106580.0,106570.0,0.22089842]
[1762783198760,0.43598733,106580.0,106570.0,0.13712523]
[1762783199753,0.43598733,106580.0,106570.0,0.34173767]
[1762783200362,0.43598733,106580.0,106570.0,0.25793523]
[1762783200861,0.43598733,106580.0,106570.0,0.00114109]
[1762783201157,0.43598733,106580.0,106570.0,0.08497635]
[1762783201460,0.43598733,106580.0,106570.0,0.17649635]
[1762783201649,0.43598733,106580.0,106570.0,0.41202635]
[1762783201848,0.43598733,106580.0,106570.0,0.12195109]
[1762783202052,0.43598733,106580.0,106570.0,0.21347109]
[1762783202262,0.43598733,106580.0,106570.0,0.09266109]
[1762783202462,0.52750733,106580.0,106570.0,0.06821686]
[1762783202663,0.52750733,106580.0,106570.0,0.00114109]
[1762783202864,0.52750733,106580.0,106570.0,0.08437973]
[1762783204551,0.52750733,106580.0,106570.0,0.00054447]
[1762783204754,0.52750733,106580.0,106570.0,0.06762014]
[1762783205654,0.34446733,106580.0,106570.0,0.06762014]
[1762783205849,0.52750733,106580.0,106570.0,0.06762014]
[1762783206852,0.52750733,106580.0,106560.0,0.06782187]
[1762783207164,0.8010479,106570.0,106560.0,0.06782187]
[1762783207366,0.80324593,106570.0,106560.0,0.06782187]
[1762783207859,0.71172593,106570.0,106560.0,0.06782187]
[1762783208056,0.80324593,106570.0,106560.0,0.06882187]
[1762783208667,0.80324593,106570.0,106560.0,0.00670173]
[1762783209167,0.80328593,106570.0,106560.0,0.00670173]
[1762783209364,0.80328593,106570.0,106560.0,0.10056843]
[1762783209661,0.80328593,106570.0,106560.0,0.22037843]
[1762783209857,0.80328593,106570.0,106560.0,0.12751173]
[1762783210264,0.80328593,106570.0,106560.0,0.00670173]
[1762783212462,0.57084593,106570.0,106560.0,0.00670173]
[1762783212669,0.89476593,106570.0,106560.0,0.00670173]
[1762783214257,0.89476593,106570.0,106540.0,0.26923286]
[1762783214470,0.4747255,106550.0,106540.0,0.41324286]
[1762783214666,0.47692353,106550.0,106540.0,0.4209276]
[1762783214972,0.80084353,106550.0,106540.0,0.4209276]
[1762783215170,0.80084353,106550.0,106540.0,0.43103394]
[1762783215562,0.80084353,106550.0,106540.0,0.43603394]
[1762783215958,0.80084353,106550.0,106540.0,0.4283492]
[1762783216272,0.80084353,106550.0,106540.0,0.4289916]
[1762783216471,0.80084353,106550.0,106540.0,0.3374716]
[1762783216668,0.89236353,106550.0,106540.0,1.6e-06]
[1762783216873,0.3341843,106540.0,106530.0,0.06720981]
[1762783217166,0.51942233,106540.0,106530.0,0.06720981]
[1762783217367,0.84346233,106540.0,106530.0,0.06720981]
[1762783217573,0.84346233,106540.0,106530.0,0.01000034]
[1762783218166,0.84346233,106540.0,106530.0,0.01500034]
[1762783219174,0.84346233,106540.0,106530.0,0.01800034]
[1762783219364,0.84346233,106540.0,106530.0,0.01657839]
[1762783219768,0.84446233,106540.0,106530.0,0.01357839]
[1762783220372,0.84446233,106540.0,106530.0,0.00857839]
[1762783220575,0.3577531,106530.0,106520.0,0.32432229]
[1762783220775,0.45147113,106530.0,106520.0,0.32432229]
[1762783221275,0.77567113,106530.0,106520.0,0.33458988]
[1762783221468,0.77567113,106530.0,106520.0,0.42610988]
[1762783221977,0.77567113,106530.0,106520.0,0.42710988]
[1762783222283,0.77567113,106530.0,106520.0,0.33558988]
[1762783222477,0.77567113,106530.0,106520.0,0.42710988]
[1762783222979,0.77567113,106530.0,106520.0,0.33320868]
[1762783223479,0.77567113,106530.0,106520.0,0.24168868]
[1762783224369,0.77567113,106530.0,106520.0,0.33559058]
[1762783225272,0.77567113,106530.0,106520.0,0.24168868]
[1762783227377,0.77567113,106530.0,106520.0,0.23818868]
[1762783229676,0.77567113,106530.0,106520.0,0.49618098]
[1762783230083,0.73568113,106530.0,106520.0,0.49618098]
[1762783231197,0.77903113,106530.0,106520.0,0.23818868]
[1762783231899,0.45483113,106530.0,106520.0,0.23818868]
[1762783232097,0.77915113,106530.0,106520.0,0.23818868]
[1762783232501,0.77915113,106530.0,106520.0,0.01126759]
[1762783232691,0.77915113,106530.0,106520.0,0.30421759]
[1762783232897,0.7792904,106530.0,106520.0,0.23164759]
[1762783233600,0.7792904,106530.0,106520.0,0.30421759]
[1762783233601,0.55038803,106530.0,106520.0,0.30421759]
[1762783233902,0.55038803,106530.0,106520.0,0.48977916]
[1762783234101,0.55038803,106530.0,106520.0,0.55675197]
[1762783234896,0.22606803,106530.0,106520.0,0.55675197]
[1762783235099,0.55042803,106530.0,106520.0,0.55675197]
[1762783235301,0.55042803,106530.0,106520.0,0.39587686]
[1762783235904,0.64432143,106530.0,106520.0,0.39587686]
[1762783236105,0.64432143,106530.0,106520.0,0.37125122]
[1762783236603,0.7793307,106530.0,106520.0,0.29868122]
[1762783236804,0.7793307,106530.0,106520.0,0.37125122]
[1762783237112,0.7359807,106530.0,106520.0,0.37125122]
[1762783240811,0.7793307,106530.0,106520.0,0.36775122]
[1762783241012,0.7793307,106530.0,106520.0,0.29518122]
[1762783241702,0.7793307,106530.0,106520.0,0.07480122]
[1762783242410,0.7792507,106530.0,106520.0,0.07480122]
[1762783242915,0.87090997,106530.0,106520.0,0.07480122]
[1762783243217,0.7792507,106530.0,106520.0,0.07480122]
[1762783243609,0.7792507,106530.0,106520.0,0.18571122]
[1762783243804,0.7792507,106530.0,106520.0,0.29518122]
[1762783247218,0.7792507,106530.0,106520.0,0.22814759]
[1762783247720,0.7792507,106530.0,106520.0,0.11867759]
[1762783248216,0.87090997,106530.0,106520.0,0.00776759]
[1762783248427,0.7792507,106530.0,106520.0,0.00776759]
[1762783249120,0.7792507,106530.0,106520.0,0.11867759]
[1762783249419,0.7792507,106530.0,106520.0,0.18596981]
[1762783249622,0.68759143,106530.0,106520.0,0.28107981]
[1762783249812,0.7792507,106530.0,106520.0,0.28107981]
[1762783251422,0.7792507,106530.0,106520.0,0.21378759]
[1762783253928,0.7792507,106530.0,106520.0,0.21028759]
[1762783254927,0.7792507,106530.0,106520.0,0.11517759]
[1762783255228,0.87090997,106530.0,106520.0,0.18250134]
[1762783255427,0.87090997,106530.0,106520.0,0.07159134]
[1762783256528,0.7792507,106530.0,106520.0,0.07159134]
[1762783257027,0.7792507,106530.0,106520.0,0.16806134]
[1762783257227,0.7792507,106530.0,106520.0,0.07159134]
[1762783257828,0.7792507,106530.0,106520.0,0.16806134]
[1762783258429,0.87090997,106530.0,106520.0,0.07159134]
[1762783259625,0.31996143,106530.0,106520.0,0.50338281]
[1762783259819,0.64404143,106530.0,106520.0,0.51978735]
[1762783260023,0.64404143,106530.0,106520.0,0.42812808]
[1762783260427,0.64404143,106530.0,106520.0,0.33422588]
[1762783260628,0.64404143,106530.0,106520.0,0.42812808]
[1762783260830,0.64404143,106530.0,106520.0,0.33422588]
[1762783261329,0.64404143,106530.0,106520.0,0.42812808]
[1762783261537,0.64400143,106530.0,106520.0,0.42812808]
[1762783261928,0.55010803,106530.0,106520.0,0.51978735]
[1762783262223,0.22606803,106530.0,106520.0,0.76013906]
[1762783264035,0.31996143,106530.0,106520.0,0.57457759]
[1762783264236,0.31996143,106530.0,106520.0,0.84427353]
[1762783264430,0.22606803,106530.0,106520.0,0.84427353]
[1762783264830,0.09402889,106540.0,106520.0,0.65341353]
[1762783265028,0.29333692,106540.0,106530.0,0.24623]
[1762783265228,0.40772619,106540.0,106530.0,0.08413447]
[1762783266024,0.73188619,106540.0,106530.0,0.08413447]
[1762783266237,0.3228934,106530.0,106520.0,0.50895206]
[1762783266535,0.4167507,106530.0,106520.0,0.60334206]
[1762783266737,0.4167507,106530.0,106520.0,0.60234206]
[1762783266935,0.50840997,106530.0,106520.0,0.00426759]
[1762783267238,0.3372422,106520.0,106510.0,0.00024172]
[1762783267442,0.7553395,106520.0,106510.0,0.08437619]
[1762783267936,0.7553395,106520.0,106510.0,0.09585146]
[1762783269040,0.7553395,106520.0,106510.0,0.09335146]
[1762783269434,0.7553395,106520.0,106510.0,0.09535146]
[1762783269947,0.75544013,106520.0,106510.0,0.09535146]
[1762783270447,0.75544013,106520.0,106510.0,0.01447527]
[1762783270939,0.75544013,106520.0,106510.0,0.11094527]
[1762783271135,0.75544013,106520.0,106510.0,0.01447527]
[1762783272039,0.1958998,106500.0,106490.0,0.36339029]
[1762783272246,0.2897571,106500.0,106490.0,0.57051]
[1762783272446,0.19809783,106500.0,106490.0,0.6644386]
[1762783272642,0.2897571,106500.0,106490.0,0.58215187]
[1762783272941,0.38141637,106500.0,106490.0,0.58215187]
[1762783273246,0.38141637,106500.0,106490.0,0.01364187]
[1762783273551,0.38141637,106500.0,106490.0,0.002]
[1762783274041,0.38141637,106500.0,106490.0,0.00058541]
[1762783274250,0.2463171,106480.0,106470.0,9.641e-05]
[1762783274441,0.75623367,106480.0,106470.0,9.641e-05]
[1762783274641,0.6645744,106480.0,106470.0,9.641e-05]
[1762783274944,0.63074364,106480.0,106470.0,9.641e-05]
[1762783275448,0.1947547,106460.0,106450.0,0.3371936]
[1762783275741,0.1947547,106460.0,106440.0,0.24623]
[1762783275742,0.2007636,106450.0,106440.0,0.24623]
[1762783275942,0.2946209,106450.0,106440.0,0.24623]
[1762783276137,0.10899803,106450.0,106440.0,0.3402024]
[1762783276340,0.05559803,106450.0,106440.0,0.3402024]
[1762783276543,0.10907293,106450.0,106440.0,0.3402024]
[1762783276751,0.10907293,106450.0,106440.0,0.35158725]
[1762783276940,0.20303653,106450.0,106440.0,0.35558725]
[1762783277141,0.20303653,106450.0,106440.0,0.26161485]
[1762783277345,0.2946958,106450.0,106440.0,0.26161485]
[1762783277945,0.10907293,106450.0,106440.0,0.35858715]
[1762783278150,7.49e-05,106450.0,106440.0,0.77532642]
[1762783278443,0.00014109,106470.0,106460.0,0.24623]
[1762783278648,0.09628502,106470.0,106460.0,0.24623]
[1762783278847,0.00233912,106470.0,106460.0,0.6653847]
[1762783279347,0.00233912,106470.0,106460.0,0.75704397]
[1762783279539,0.00433912,106470.0,106460.0,0.75704397]
[1762783279739,0.00633912,106470.0,106460.0,0.75704397]
[1762783280141,0.00643311,106470.0,106460.0,0.75704397]
[1762783280740,0.00423508,106470.0,106460.0,0.85097155]
[1762783281939,0.00070992,106470.0,106460.0,0.93482988]
[1762783282143,0.25309337,106490.0,106480.0,0.23565]
[1762783282352,0.2552914,106490.0,106480.0,0.56089]
[1762783283352,0.2592914,106490.0,106480.0,0.56089]
[1762783284454,0.17063213,106490.0,106480.0,0.56089]
[1762783284855,0.07669803,106490.0,106480.0,0.6548274]
[1762783285072,0.2622859,106490.0,106480.0,0.56089]
[1762783288360,0.2622859,106490.0,106480.0,0.55739]
[1762783290856,0.2622859,106490.0,106470.0,0.19951908]
[1762783290857,0.1756174,106480.0,106470.0,0.56445109]
[1762783291052,0.2694747,106480.0,106470.0,0.56445109]
[1762783292050,0.2734747,106480.0,106470.0,0.56445109]
[1762783292965,0.27355972,106480.0,106470.0,0.56445109]
[1762783295464,0.27355972,106480.0,106470.0,0.62790017]